[Event "Snabbschacks-SM 2025"]
[Site "Norrköping, Sweden"]
[Date "2025.09.28"]
[Round "8.8"]
[White "Olsson, Simon"]
[Black "Eriksson, Kristian"]
[Result "1/2-1/2"]
[TimeControl "25 min + 10 sec/move"]
[WhiteElo "2068"]
[BlackElo "2033"]

1. d4 {[%clk 00:25:17]} {[%emt 00:00:01]} e6 {[%clk 00:25:14]} {[%emt
00:00:07]} 2. c4 {[%clk 00:25:26]} {[%emt 00:00:01]} Nf6 {[%clk 00:25:19]}
{[%emt 00:00:04]} 3. Nc3 {[%clk 00:25:34]} {[%emt 00:00:02]} Bb4 {[%clk
00:25:26]} {[%emt 00:00:04]} 4. a3 {[%clk 00:25:43]} {[%emt 00:00:01]} Bxc3+
{[%clk 00:25:33]} {[%emt 00:00:03]} 5. bxc3 {[%clk 00:25:52]} c5 {[%clk
00:24:19]} {[%emt 00:01:24]} 6. e3 {[%clk 00:26:00]} {[%emt 00:00:02]} O-O
{[%clk 00:24:22]} {[%emt 00:00:06]} 7. Bd3 {[%clk 00:26:07]} {[%emt 00:00:04]}
Nc6 {[%clk 00:24:07]} {[%emt 00:00:25]} 8. Ne2 {[%clk 00:26:11]} {[%emt
00:00:06]} b6 {[%clk 00:23:01]} {[%emt 00:01:16]} 9. e4 {[%clk 00:25:35]}
{[%emt 00:00:46]} d6 {[%clk 00:22:47]} {[%emt 00:00:23]} 10. O-O {[%clk
00:22:04]} {[%emt 00:03:41]} Ba6 {[%clk 00:21:38]} {[%emt 00:01:19]} 11. Bg5
{[%clk 00:17:05]} {[%emt 00:05:10]} h6 {[%clk 00:21:39]} {[%emt 00:00:09]} 12.
Bh4 {[%clk 00:17:12]} {[%emt 00:00:03]} g5 {[%clk 00:21:26]} {[%emt 00:00:22]}
13. Bg3 {[%clk 00:17:04]} {[%emt 00:00:18]} e5 {[%clk 00:21:31]} {[%emt
00:00:06]} 14. Qa4 {[%clk 00:14:44]} {[%emt 00:02:30]} Bb7 {[%clk 00:21:12]}
{[%emt 00:00:28]} 15. f3 {[%clk 00:13:35]} {[%emt 00:01:20]} Qd7 {[%clk
00:19:13]} {[%emt 00:02:09]} 16. Qc2 {[%clk 00:12:54]} {[%emt 00:00:51]} Qe7
{[%clk 00:17:52]} {[%emt 00:01:30]} 17. Bf2 {[%clk 00:12:35]} {[%emt 00:00:31]}
Bc8 {[%clk 00:17:11]} {[%emt 00:00:50]} 18. Be3 {[%clk 00:08:41]} {[%emt
00:04:04]} Nh7 {[%clk 00:15:28]} {[%emt 00:01:52]} 19. d5 {[%clk 00:07:51]}
{[%emt 00:01:01]} Na5 {[%clk 00:15:16]} {[%emt 00:00:22]} 20. Ng3 {[%clk
00:07:58]} {[%emt 00:00:03]} f6 {[%clk 00:14:13]} {[%emt 00:01:13]} 21. Kf2
{[%clk 00:06:49]} {[%emt 00:01:19]} Rf7 {[%clk 00:13:38]} {[%emt 00:00:45]} 22.
Rh1 {[%clk 00:06:26]} {[%emt 00:00:33]} Nf8 {[%clk 00:12:39]} {[%emt 00:01:08]}
23. Nf5 {[%clk 00:06:03]} {[%emt 00:00:33]} Bxf5 {[%clk 00:12:44]} {[%emt
00:00:05]} 24. exf5 {[%clk 00:06:12]} {[%emt 00:00:02]} Rh7 {[%clk 00:11:27]}
{[%emt 00:01:26]} 25. h4 {[%clk 00:06:09]} {[%emt 00:00:14]} Nd7 {[%clk
00:09:42]} {[%emt 00:01:55]} 26. Rae1 {[%clk 00:05:18]} {[%emt 00:01:02]} Qg7
{[%clk 00:08:50]} {[%emt 00:01:01]} 27. g4 {[%clk 00:04:18]} {[%emt 00:01:10]}
Kf7 {[%clk 00:06:48]} {[%emt 00:02:12]} 28. Bc1 {[%clk 00:04:23]} {[%emt
00:00:06]} Re8 {[%clk 00:05:53]} {[%emt 00:01:04]} 1/2-1/2

[Event "Snabbschacks-SM 2025"]
[Site "Norrköping, Sweden"]
[Date "2025.09.28"]
[Round "7.3"]
[White "Lindh, Fredrik"]
[Black "Livner, Anders"]
[Result "0-1"]
[TimeControl "25 min + 10 sec/move"]
[WhiteTitle "FM"]
[BlackTitle "FM"]
[WhiteElo "2249"]
[BlackElo "2292"]

1. e4 {[%clk 00:23:25]} {[%emt 00:01:53]} c6 {[%clk 00:25:19]} {[%emt
00:00:01]} 2. d4 {[%clk 00:23:34]} {[%emt 00:00:02]} d5 {[%clk 00:25:28]}
{[%emt 00:00:01]} 3. e5 {[%clk 00:23:42]} {[%emt 00:00:02]} Bf5 {[%clk
00:25:36]} {[%emt 00:00:01]} 4. Nd2 {[%clk 00:23:51]} {[%emt 00:00:02]} e6
{[%clk 00:25:45]} {[%emt 00:00:02]} 5. Nb3 {[%clk 00:23:59]} {[%emt 00:00:01]}
c5 {[%clk 00:25:49]} {[%emt 00:00:06]} 6. dxc5 {[%clk 00:24:07]} {[%emt
00:00:02]} Bxc5 {[%clk 00:25:56]} {[%emt 00:00:04]} 7. Bb5+ {[%clk 00:24:15]}
{[%emt 00:00:02]} Nc6 {[%clk 00:25:47]} {[%emt 00:00:18]} 8. Bxc6+ {[%clk
00:24:23]} {[%emt 00:00:03]} bxc6 {[%clk 00:25:56]} {[%emt 00:00:01]} 9. Nxc5
{[%clk 00:24:31]} {[%emt 00:00:02]} Qa5+ {[%clk 00:25:56]} {[%emt 00:00:09]} 10.
c3 {[%clk 00:24:40]} {[%emt 00:00:02]} Qxc5 {[%clk 00:26:04]} {[%emt 00:00:02]}
11. Ne2 {[%clk 00:24:48]} {[%emt 00:00:02]} Qb6 {[%clk 00:19:01]} {[%emt
00:07:13]} 12. Nd4 {[%clk 00:21:42]} {[%emt 00:03:16]} Ne7 {[%clk 00:18:59]}
{[%emt 00:00:12]} 13. b4 {[%clk 00:19:57]} {[%emt 00:01:55]} O-O {[%clk
00:17:25]} {[%emt 00:01:44]} 14. g4 {[%clk 00:10:07]} {[%emt 00:10:00]} Be4
{[%clk 00:15:13]} {[%emt 00:02:22]} 15. f3 {[%clk 00:10:15]} {[%emt 00:00:02]}
Bg6 {[%clk 00:15:07]} {[%emt 00:00:16]} 16. Bg5 {[%clk 00:09:04]} {[%emt
00:01:21]} Rae8 {[%clk 00:08:49]} {[%emt 00:06:28]} 17. Be3 {[%clk 00:06:26]}
{[%emt 00:02:48]} c5 {[%clk 00:05:47]} {[%emt 00:03:13]} 18. Nb3 {[%clk
00:05:59]} {[%emt 00:00:36]} Qc7 {[%clk 00:05:54]} {[%emt 00:00:04]} 19. Nxc5
{[%clk 00:05:15]} {[%emt 00:00:54]} Qxe5 {[%clk 00:06:01]} {[%emt 00:00:02]} 20.
Qd4 {[%clk 00:05:24]} {[%emt 00:00:02]} Qc7 {[%clk 00:06:00]} {[%emt 00:00:10]}
21. O-O {[%clk 00:04:50]} {[%emt 00:00:44]} Nc6 {[%clk 00:06:07]} {[%emt
00:00:04]} 22. Qd2 {[%clk 00:04:56]} {[%emt 00:00:04]} f6 {[%clk 00:03:48]}
{[%emt 00:02:28]} 23. f4 {[%clk 00:04:21]} {[%emt 00:00:45]} Bf7 {[%clk
00:03:51]} {[%emt 00:00:07]} 24. Nb3 {[%clk 00:03:35]} {[%emt 00:00:57]} Rd8
{[%clk 00:03:40]} {[%emt 00:00:21]} 25. Bc5 {[%clk 00:03:29]} {[%emt 00:00:15]}
Rfe8 {[%clk 00:03:42]} {[%emt 00:00:09]} 26. Qf2 {[%clk 00:03:27]} {[%emt
00:00:11]} Rd7 {[%clk 00:03:14]} {[%emt 00:00:38]} 27. Nd4 {[%clk 00:03:15]}
{[%emt 00:00:22]} Nxd4 {[%clk 00:02:13]} {[%emt 00:01:10]} 28. cxd4 {[%clk
00:03:17]} {[%emt 00:00:08]} Bg6 {[%clk 00:02:19]} {[%emt 00:00:04]} 29. f5
{[%clk 00:03:13]} {[%emt 00:00:14]} exf5 {[%clk 00:02:20]} {[%emt 00:00:09]} 30.
gxf5 {[%clk 00:03:21]} {[%emt 00:00:03]} Bh5 {[%clk 00:02:19]} {[%emt
00:00:10]} 31. Rae1 {[%clk 00:03:14]} {[%emt 00:00:18]} Re4 {[%clk 00:01:03]}
{[%emt 00:01:26]} 32. Rxe4 {[%clk 00:02:44]} {[%emt 00:00:39]} dxe4 {[%clk
00:01:12]} 33. Re1 {[%clk 00:02:44]} {[%emt 00:00:10]} Qb7 {[%clk 00:00:48]}
{[%emt 00:00:33]} 34. Qf4 {[%clk 00:02:44]} {[%emt 00:00:12]} h6 {[%clk
00:00:36]} {[%emt 00:00:23]} 35. Rxe4 {[%clk 00:02:15]} {[%emt 00:00:39]} Bf7
{[%clk 00:00:35]} {[%emt 00:00:11]} 36. a4 {[%clk 00:01:20]} {[%emt 00:01:04]}
a6 {[%clk 00:00:45]} 37. Qe3 {[%clk 00:00:57]} {[%emt 00:00:33]} Qd5 {[%clk
00:00:45]} {[%emt 00:00:10]} 38. Qf4 {[%clk 00:00:31]} {[%emt 00:00:35]} Kh7
{[%clk 00:00:48]} {[%emt 00:00:07]} 39. Re2 {[%clk 00:00:35]} {[%emt 00:00:05]}
Qb3 {[%clk 00:00:43]} {[%emt 00:00:16]} 40. Qg3 {[%clk 00:00:24]} {[%emt
00:00:21]} Qb1+ {[%clk 00:00:46]} {[%emt 00:00:06]} 41. Re1 {[%clk 00:00:27]}
{[%emt 00:00:07]} Qxf5 {[%clk 00:00:55]} {[%emt 00:00:02]} 42. b5 {[%clk
00:00:27]} {[%emt 00:00:10]} axb5 {[%clk 00:01:03]} {[%emt 00:00:02]} 43. axb5
{[%clk 00:00:36]} Bd5 {[%clk 00:00:50]} {[%emt 00:00:22]} 44. Bf8 {[%clk
00:00:27]} {[%emt 00:00:20]} Bb7 {[%clk 00:00:36]} {[%emt 00:00:24]} 45. Bc5
{[%clk 00:00:25]} {[%emt 00:00:12]} Rd5 {[%clk 00:00:14]} {[%emt 00:00:32]} 46.
Re7 {[%clk 00:00:22]} {[%emt 00:00:13]} Qb1+ {[%clk 00:00:21]} {[%emt
00:00:03]} 47. Re1 {[%clk 00:00:25]} {[%emt 00:00:07]} Qxb5 {[%clk 00:00:14]}
{[%emt 00:00:17]} 48. h4 {[%clk 00:00:22]} {[%emt 00:00:12]} Qc4 {[%clk
00:00:11]} {[%emt 00:00:13]} 49. Re7 {[%clk 00:00:21]} {[%emt 00:00:12]} Qc1+
{[%clk 00:00:17]} {[%emt 00:00:03]} 50. Re1 {[%clk 00:00:27]} {[%emt 00:00:05]}
Qc2 {[%clk 00:00:19]} {[%emt 00:00:07]} 51. Re7 {[%clk 00:00:33]} {[%emt
00:00:05]} Qb1+ {[%clk 00:00:22]} {[%emt 00:00:07]} 52. Kh2 {[%clk 00:00:14]}
{[%emt 00:00:29]} Rg5 {[%clk 00:00:19]} {[%emt 00:00:13]} 53. Re1 {[%clk
00:00:17]} {[%emt 00:00:07]} Qc2+ {[%clk 00:00:21]} {[%emt 00:00:08]} 0-1

[Event "Snabbschacks-SM 2025"]
[Site "Norrköping, Sweden"]
[Date "2025.09.28"]
[Round "8.9"]
[White "Stenman, Christoffer"]
[Black "Ask, Josef"]
[Result "0-1"]
[TimeControl "25 min + 10 sec/move"]
[BlackTitle "FM"]
[WhiteElo "2004"]
[BlackElo "2047"]

1. e4 {[%clk 00:25:17]} {[%emt 00:00:01]} g5 {[%clk 00:24:46]} {[%emt
00:00:34]} 2. d4 {[%clk 00:24:44]} {[%emt 00:00:43]} h6 {[%clk 00:24:53]}
{[%emt 00:00:03]} 3. Nc3 {[%clk 00:23:10]} {[%emt 00:01:45]} Bg7 {[%clk
00:24:45]} {[%emt 00:00:18]} 4. Bc4 {[%clk 00:21:44]} {[%emt 00:01:36]} Nc6
{[%clk 00:24:30]} {[%emt 00:00:26]} 5. Be3 {[%clk 00:20:45]} {[%emt 00:01:07]}
d6 {[%clk 00:24:20]} {[%emt 00:00:20]} 6. Nge2 {[%clk 00:19:57]} {[%emt
00:00:58]} Nf6 {[%clk 00:24:24]} {[%emt 00:00:07]} 7. f3 {[%clk 00:19:38]}
{[%emt 00:00:29]} a6 {[%clk 00:24:02]} {[%emt 00:00:33]} 8. a3 {[%clk
00:19:15]} {[%emt 00:00:32]} b5 {[%clk 00:23:59]} {[%emt 00:00:13]} 9. Ba2
{[%clk 00:18:37]} {[%emt 00:00:48]} e5 {[%clk 00:23:50]} {[%emt 00:00:19]} 10.
d5 {[%clk 00:17:29]} {[%emt 00:01:18]} Ne7 {[%clk 00:23:58]} {[%emt 00:00:02]}
11. h4 {[%clk 00:14:57]} {[%emt 00:02:41]} g4 {[%clk 00:23:52]} {[%emt
00:00:17]} 12. f4 {[%clk 00:13:54]} {[%emt 00:01:13]} exf4 {[%clk 00:23:45]}
{[%emt 00:00:17]} 13. Nxf4 {[%clk 00:13:17]} {[%emt 00:00:47]} Ng6 {[%clk
00:23:27]} {[%emt 00:00:28]} 14. Nxg6 {[%clk 00:11:41]} {[%emt 00:01:46]} fxg6
{[%clk 00:23:36]} {[%emt 00:00:02]} 15. Bd4 {[%clk 00:08:51]} {[%emt 00:03:00]}
g3 {[%clk 00:22:13]} {[%emt 00:01:33]} 16. Qf3 {[%clk 00:07:32]} {[%emt
00:01:28]} O-O {[%clk 00:20:44]} {[%emt 00:01:40]} 17. Qxg3 {[%clk 00:06:39]}
{[%emt 00:01:03]} Kh7 {[%clk 00:20:47]} {[%emt 00:00:07]} 18. O-O-O {[%clk
00:06:23]} {[%emt 00:00:27]} Rb8 {[%clk 00:20:15]} {[%emt 00:00:41]} 19. Rde1
{[%clk 00:04:32]} {[%emt 00:02:01]} b4 {[%clk 00:20:01]} {[%emt 00:00:24]} 20.
axb4 {[%clk 00:04:13]} {[%emt 00:00:29]} Rxb4 {[%clk 00:20:09]} {[%emt
00:00:03]} 21. Qd3 {[%clk 00:03:32]} {[%emt 00:00:50]} Rxd4 {[%clk 00:18:35]}
{[%emt 00:01:44]} 22. Qxd4 {[%clk 00:03:25]} {[%emt 00:00:18]} Ng4 {[%clk
00:18:43]} {[%emt 00:00:02]} 23. e5 {[%clk 00:02:41]} {[%emt 00:00:53]} dxe5
{[%clk 00:17:40]} {[%emt 00:01:13]} 24. Qc4 {[%clk 00:02:11]} {[%emt 00:00:39]}
Bf5 {[%clk 00:16:20]} {[%emt 00:01:32]} 25. h5 {[%clk 00:02:07]} {[%emt
00:00:13]} Qg5+ {[%clk 00:16:13]} {[%emt 00:00:17]} 26. Kb1 {[%clk 00:02:16]}
{[%emt 00:00:02]} Ne3 {[%clk 00:15:48]} {[%emt 00:00:34]} 27. hxg6+ {[%clk
00:02:20]} {[%emt 00:00:05]} Bxg6 {[%clk 00:15:56]} {[%emt 00:00:03]} 28. Rxe3
{[%clk 00:01:55]} {[%emt 00:00:36]} Qxe3 {[%clk 00:16:02]} {[%emt 00:00:03]} 29.
d6 {[%clk 00:01:39]} {[%emt 00:00:27]} cxd6 {[%clk 00:15:59]} {[%emt 00:00:14]}
30. Nd5 {[%clk 00:01:47]} Qf2 {[%clk 00:15:28]} {[%emt 00:00:41]} 31. Rd1
{[%clk 00:01:10]} {[%emt 00:00:47]} Qxg2 {[%clk 00:15:18]} {[%emt 00:00:20]} 32.
Ne7 {[%clk 00:00:44]} {[%emt 00:00:36]} d5 {[%clk 00:14:46]} {[%emt 00:00:42]}
33. Qxa6 {[%clk 00:00:41]} {[%emt 00:00:13]} Qxc2+ {[%clk 00:14:51]} {[%emt
00:00:05]} 0-1

[Event "Snabbschacks-SM 2025"]
[Site "Norrköping, Sweden"]
[Date "2025.09.28"]
[Round "7.4"]
[White "Grahn, Vidar"]
[Black "Rogoz, Vladyslav"]
[Result "1-0"]
[TimeControl "25 min + 10 sec/move"]
[WhiteTitle "FM"]
[WhiteElo "2236"]
[BlackElo "2108"]

1. g3 {[%clk 00:25:08]} {[%emt 00:00:11]} g6 {[%clk 00:24:54]} {[%emt
00:00:26]} 2. Bg2 {[%clk 00:25:11]} {[%emt 00:00:07]} Bg7 {[%clk 00:25:02]}
{[%emt 00:00:02]} 3. d4 {[%clk 00:25:19]} {[%emt 00:00:02]} d5 {[%clk
00:25:11]} {[%emt 00:00:02]} 4. c4 {[%clk 00:25:27]} {[%emt 00:00:03]} c6
{[%clk 00:25:09]} {[%emt 00:00:11]} 5. Nf3 {[%clk 00:25:35]} {[%emt 00:00:02]}
Nf6 {[%clk 00:25:17]} {[%emt 00:00:02]} 6. O-O {[%clk 00:25:35]} {[%emt
00:00:09]} O-O {[%clk 00:25:25]} {[%emt 00:00:03]} 7. Nc3 {[%clk 00:25:25]}
{[%emt 00:00:20]} Ne4 {[%clk 00:25:03]} {[%emt 00:00:31]} 8. Bf4 {[%clk
00:24:50]} {[%emt 00:00:45]} Nxc3 {[%clk 00:25:07]} {[%emt 00:00:07]} 9. bxc3
{[%clk 00:24:59]} {[%emt 00:00:01]} Nd7 {[%clk 00:24:32]} {[%emt 00:00:45]} 10.
cxd5 {[%clk 00:24:37]} {[%emt 00:00:32]} cxd5 {[%clk 00:24:41]} {[%emt
00:00:01]} 11. Qb3 {[%clk 00:24:10]} {[%emt 00:00:37]} Nb6 {[%clk 00:24:46]}
{[%emt 00:00:05]} 12. Ne5 {[%clk 00:23:34]} {[%emt 00:00:46]} Bf5 {[%clk
00:24:48]} {[%emt 00:00:08]} 13. a4 {[%clk 00:23:30]} {[%emt 00:00:15]} f6
{[%clk 00:23:26]} {[%emt 00:01:31]} 14. Nd3 {[%clk 00:23:19]} {[%emt 00:00:20]}
Bxd3 {[%clk 00:22:50]} {[%emt 00:00:46]} 15. exd3 {[%clk 00:23:28]} {[%emt
00:00:02]} e5 {[%clk 00:22:59]} 16. Be3 {[%clk 00:23:32]} {[%emt 00:00:06]}
exd4 {[%clk 00:21:28]} {[%emt 00:01:41]} 17. Bxd4 {[%clk 00:23:39]} {[%emt
00:00:03]} f5 {[%clk 00:21:37]} 18. a5 {[%clk 00:22:06]} {[%emt 00:01:43]} Bxd4
{[%clk 00:21:43]} {[%emt 00:00:04]} 19. cxd4 {[%clk 00:22:15]} {[%emt
00:00:01]} Nd7 {[%clk 00:21:05]} {[%emt 00:00:48]} 20. Qxd5+ {[%clk 00:22:18]}
{[%emt 00:00:07]} Kg7 {[%clk 00:21:06]} {[%emt 00:00:10]} 21. Qxb7 {[%clk
00:22:04]} {[%emt 00:00:24]} Qe7 {[%clk 00:20:28]} {[%emt 00:00:47]} 22. Rac1
{[%clk 00:21:35]} {[%emt 00:00:38]} Rfb8 {[%clk 00:20:31]} {[%emt 00:00:08]} 23.
Qa6 {[%clk 00:21:32]} {[%emt 00:00:13]} Qf6 {[%clk 00:20:15]} {[%emt 00:00:27]}
24. Qxf6+ {[%clk 00:21:36]} {[%emt 00:00:05]} Kxf6 {[%clk 00:20:13]} {[%emt
00:00:12]} 25. Rc7 {[%clk 00:21:29]} {[%emt 00:00:16]} Ke6 {[%clk 00:20:18]}
{[%emt 00:00:05]} 26. Re1+ {[%clk 00:21:35]} {[%emt 00:00:04]} Kd6 {[%clk
00:20:18]} {[%emt 00:00:11]} 27. Rc6# {[%clk 00:21:43]} {[%emt 00:00:02]} 1-0

[Event "Snabbschacks-SM 2025"]
[Site "Norrköping, Sweden"]
[Date "2025.09.28"]
[Round "8.10"]
[White "Bohman Karlholm, Adrian"]
[Black "Dingertz, Filip"]
[Result "1-0"]
[TimeControl "25 min + 10 sec/move"]
[WhiteElo "2102"]
[BlackElo "2049"]

1. d4 {[%clk 00:25:17]} {[%emt 00:00:02]} d5 {[%clk 00:25:00]} {[%emt
00:00:21]} 2. c4 {[%clk 00:25:24]} {[%emt 00:00:03]} e6 {[%clk 00:25:09]}
{[%emt 00:00:01]} 3. Nc3 {[%clk 00:25:29]} {[%emt 00:00:05]} Nf6 {[%clk
00:25:16]} {[%emt 00:00:02]} 4. cxd5 {[%clk 00:25:31]} {[%emt 00:00:09]} exd5
{[%clk 00:25:24]} {[%emt 00:00:01]} 5. Bg5 {[%clk 00:25:37]} {[%emt 00:00:04]}
Be7 {[%clk 00:25:31]} {[%emt 00:00:03]} 6. e3 {[%clk 00:25:40]} {[%emt
00:00:07]} O-O {[%clk 00:25:36]} {[%emt 00:00:06]} 7. Bd3 {[%clk 00:25:44]}
{[%emt 00:00:05]} c6 {[%clk 00:25:36]} {[%emt 00:00:10]} 8. Qc2 {[%clk
00:25:49]} {[%emt 00:00:05]} Nbd7 {[%clk 00:25:35]} {[%emt 00:00:12]} 9. Nge2
{[%clk 00:25:50]} {[%emt 00:00:09]} Re8 {[%clk 00:25:44]} {[%emt 00:00:01]} 10.
O-O {[%clk 00:25:54]} {[%emt 00:00:06]} Nf8 {[%clk 00:25:45]} {[%emt 00:00:09]}
11. Rae1 {[%clk 00:25:46]} {[%emt 00:00:17]} a6 {[%clk 00:25:37]} {[%emt
00:00:18]} 12. f3 {[%clk 00:25:20]} {[%emt 00:00:36]} c5 {[%clk 00:25:33]}
{[%emt 00:00:15]} 13. Kh1 {[%clk 00:24:29]} {[%emt 00:01:00]} c4 {[%clk
00:23:33]} {[%emt 00:02:11]} 14. Bf5 {[%clk 00:24:34]} {[%emt 00:00:04]} g6
{[%clk 00:23:30]} {[%emt 00:00:13]} 15. Bxc8 {[%clk 00:24:32]} {[%emt
00:00:12]} Rxc8 {[%clk 00:23:39]} {[%emt 00:00:01]} 16. Nf4 {[%clk 00:23:42]}
{[%emt 00:01:00]} N8d7 {[%clk 00:22:26]} {[%emt 00:01:24]} 17. e4 {[%clk
00:22:30]} {[%emt 00:01:22]} dxe4 {[%clk 00:20:49]} {[%emt 00:01:47]} 18. fxe4
{[%clk 00:22:37]} {[%emt 00:00:02]} Ng4 {[%clk 00:19:03]} {[%emt 00:01:56]} 19.
Bxe7 {[%clk 00:22:04]} {[%emt 00:00:42]} Qxe7 {[%clk 00:19:06]} {[%emt
00:00:07]} 20. Qe2 {[%clk 00:19:45]} {[%emt 00:02:29]} h5 {[%clk 00:16:50]}
{[%emt 00:02:26]} 21. e5 {[%clk 00:17:46]} {[%emt 00:02:09]} Qd8 {[%clk
00:14:30]} {[%emt 00:02:31]} 22. Ne4 {[%clk 00:17:25]} {[%emt 00:00:30]} Ndxe5
{[%clk 00:13:13]} {[%emt 00:01:28]} 23. dxe5 {[%clk 00:17:28]} {[%emt
00:00:06]} Rxe5 {[%clk 00:13:17]} {[%emt 00:00:06]} 24. h3 {[%clk 00:12:02]}
{[%emt 00:05:36]} f5 {[%clk 00:12:06]} {[%emt 00:01:22]} 25. hxg4 {[%clk
00:12:02]} {[%emt 00:00:09]} hxg4 {[%clk 00:11:55]} {[%emt 00:00:21]} 26. Nf6+
{[%clk 00:11:19]} {[%emt 00:00:53]} 1-0

[Event "Snabbschacks-SM 2025"]
[Site "Norrköping, Sweden"]
[Date "2025.09.28"]
[Round "7.5"]
[White "Wernberg, Hugo"]
[Black "Olsson, Linus"]
[Result "1-0"]
[TimeControl "25 min + 10 sec/move"]
[WhiteTitle "FM"]
[BlackTitle "FM"]
[WhiteElo "2285"]
[BlackElo "2166"]

1. g3 {[%clk 00:25:02]} {[%emt 00:00:18]} g6 {[%clk 00:24:53]} {[%emt
00:00:27]} 2. Bg2 {[%clk 00:25:10]} {[%emt 00:00:02]} Bg7 {[%clk 00:24:59]}
{[%emt 00:00:03]} 3. e4 {[%clk 00:25:19]} {[%emt 00:00:02]} c5 {[%clk
00:24:59]} {[%emt 00:00:11]} 4. Ne2 {[%clk 00:25:26]} {[%emt 00:00:02]} Nc6
{[%clk 00:25:06]} {[%emt 00:00:03]} 5. c3 {[%clk 00:25:35]} e5 {[%clk
00:24:27]} {[%emt 00:00:50]} 6. f4 {[%clk 00:25:43]} {[%emt 00:00:01]} d6
{[%clk 00:23:53]} {[%emt 00:00:44]} 7. d3 {[%clk 00:25:51]} {[%emt 00:00:02]}
Nge7 {[%clk 00:21:57]} {[%emt 00:02:06]} 8. Nd2 {[%clk 00:25:59]} {[%emt
00:00:02]} O-O {[%clk 00:21:59]} {[%emt 00:00:08]} 9. O-O {[%clk 00:26:05]}
{[%emt 00:00:04]} f5 {[%clk 00:21:30]} {[%emt 00:00:38]} 10. Nf3 {[%clk
00:25:15]} {[%emt 00:01:00]} h6 {[%clk 00:20:41]} {[%emt 00:01:00]} 11. Be3
{[%clk 00:24:00]} {[%emt 00:01:25]} exf4 {[%clk 00:18:18]} {[%emt 00:02:33]} 12.
gxf4 {[%clk 00:23:04]} {[%emt 00:01:06]} Kh7 {[%clk 00:17:18]} {[%emt
00:01:08]} 13. Qe1 {[%clk 00:21:29]} {[%emt 00:01:47]} c4 {[%clk 00:16:27]}
{[%emt 00:01:01]} 14. dxc4 {[%clk 00:21:01]} {[%emt 00:00:38]} fxe4 {[%clk
00:16:30]} {[%emt 00:00:07]} 15. Nd2 {[%clk 00:19:46]} {[%emt 00:01:25]} Nf5
{[%clk 00:15:43]} {[%emt 00:00:57]} 16. Ng3 {[%clk 00:19:49]} {[%emt 00:00:07]}
d5 {[%clk 00:13:11]} {[%emt 00:02:42]} 17. cxd5 {[%clk 00:19:10]} {[%emt
00:00:49]} Qxd5 {[%clk 00:13:17]} {[%emt 00:00:04]} 18. Ndxe4 {[%clk 00:17:21]}
{[%emt 00:01:59]} Qd3 {[%clk 00:12:21]} {[%emt 00:01:06]} 19. Bc5 {[%clk
00:16:25]} {[%emt 00:01:05]} Rg8 {[%clk 00:10:03]} {[%emt 00:02:28]} 20. Qd1
{[%clk 00:14:36]} {[%emt 00:01:59]} Qb5 {[%clk 00:08:43]} {[%emt 00:01:31]} 21.
Qb3 {[%clk 00:14:38]} {[%emt 00:00:08]} Qxb3 {[%clk 00:07:51]} {[%emt
00:01:03]} 22. axb3 {[%clk 00:14:46]} {[%emt 00:00:02]} Be6 {[%clk 00:07:08]}
{[%emt 00:00:52]} 23. b4 {[%clk 00:14:54]} {[%emt 00:00:02]} a6 {[%clk
00:06:54]} {[%emt 00:00:24]} 24. Rfe1 {[%clk 00:14:13]} {[%emt 00:00:50]} Bb3
{[%clk 00:06:04]} {[%emt 00:01:00]} 25. Nxf5 {[%clk 00:12:42]} {[%emt
00:01:41]} gxf5 {[%clk 00:06:11]} {[%emt 00:00:03]} 26. Ng3 {[%clk 00:11:31]}
{[%emt 00:01:20]} Bf6 {[%clk 00:05:30]} {[%emt 00:00:52]} 27. Bh3 {[%clk
00:11:06]} {[%emt 00:00:35]} Bc2 {[%clk 00:05:01]} {[%emt 00:00:39]} 28. Re2
{[%clk 00:08:54]} {[%emt 00:02:22]} Be4 {[%clk 00:04:53]} {[%emt 00:00:18]} 29.
Rd1 {[%clk 00:08:44]} {[%emt 00:00:20]} Rad8 {[%clk 00:04:14]} {[%emt
00:00:49]} 30. Red2 {[%clk 00:08:18]} {[%emt 00:00:36]} Rxd2 {[%clk 00:01:14]}
{[%emt 00:03:10]} 31. Rxd2 {[%clk 00:08:26]} {[%emt 00:00:02]} Bh4 {[%clk
00:00:53]} {[%emt 00:00:28]} 32. Rd7+ {[%clk 00:08:08]} {[%emt 00:00:29]} Kh8
{[%clk 00:00:46]} {[%emt 00:00:18]} 33. Kf2 {[%clk 00:07:25]} {[%emt 00:00:53]}
b5 {[%clk 00:00:26]} {[%emt 00:00:30]} 34. Rd6 {[%clk 00:06:34]} {[%emt
00:01:01]} Kh7 {[%clk 00:00:23]} {[%emt 00:00:13]} 35. Bxf5+ {[%clk 00:06:14]}
{[%emt 00:00:30]} Bxf5 {[%clk 00:00:30]} {[%emt 00:00:04]} 36. Rxc6 {[%clk
00:06:22]} Rg6 {[%clk 00:00:12]} {[%emt 00:00:28]} 37. Bd6 {[%clk 00:05:24]}
{[%emt 00:01:08]} Bd3 {[%clk 00:00:11]} {[%emt 00:00:11]} 38. Rxa6 {[%clk
00:05:07]} {[%emt 00:00:27]} Re6 {[%clk 00:00:20]} {[%emt 00:00:01]} 39. Ra7+
{[%clk 00:05:12]} {[%emt 00:00:05]} Kg6 {[%clk 00:00:28]} {[%emt 00:00:02]} 40.
Be5 {[%clk 00:05:13]} {[%emt 00:00:09]} Bc4 {[%clk 00:00:20]} {[%emt 00:00:18]}
41. Rg7# {[%clk 00:05:18]} {[%emt 00:00:05]} 1-0

[ePGN "0.1;DGT LiveChess/2.2.7"]